fUST/lending_fUST_20250126
["ID","MTS","AMOUNT","RATE_DAILY","PERIOD"]
[350398396,1737828639324,-5996.5,0.00016849,2]
[350398397,1737828639333,-718.79,0.00016849,2]
[350398398,1737828639346,-496.02,0.00016849,2]
[350398399,1737828639355,-570.26,0.00016849,2]
[350398400,1737828639366,-500.0,0.00016849,2]
[350398401,1737828639376,-2417.41840669,0.00016849,2]
[350398402,1737828639433,-534.84159331,0.00016849,2]
[350398403,1737828639443,-416.56735223,0.00016849,2]
[350398404,1737828639765,-650.59,0.00016438,2]
[350398405,1737828639774,-650.59,0.00016438,2]
[350398406,1737828639784,-650.59,0.00016438,2]
[350398407,1737828639793,-650.59,0.00016438,2]
[350398408,1737828639803,-650.59,0.00016438,2]
[350398409,1737828639813,-650.59,0.00016438,2]
[350398410,1737828639824,-650.59,0.00016574,2]
[350398411,1737828639835,-650.59,0.00016574,2]
[350398412,1737828639845,-650.59,0.00016574,2]
[350398413,1737828639854,-650.59,0.00016574,2]
[350398414,1737828639864,-650.59,0.00016574,2]
[350398415,1737828639874,-267.70979738,0.00016711,2]
[350398416,1737828639887,-382.88020262,0.00016711,2]
[350398417,1737828639896,-650.59,0.00016711,2]
[350398418,1737828639907,-650.59,0.00016711,2]
[350398419,1737828639917,-650.59,0.00016711,2]
[350398420,1737828639926,-650.59,0.00016711,2]
[350398421,1737828639936,-129.75979355,0.00016711,2]
[350398422,1737828639948,-520.83020645,0.00016711,2]
[350398423,1737828639959,-650.59,0.00016711,2]
[350398424,1737828639969,-650.75,0.00016711,2]
[350398425,1737828639979,-83.43264777,0.00016849,2]
[350398426,1737828639989,-575.92,0.00016849,2]
[350398427,1737828639999,-2591.56,0.00016849,2]
[350398428,1737828640010,-964.32,0.00016849,2]
[350398429,1737828640020,-500.0,0.00016849,2]
[350398430,1737828640030,-531.52,0.00016849,2]
[350398431,1737828640039,-500.0,0.00016849,2]
[350398433,1737828640049,-1382.81,0.00016849,2]
[350398435,1737828640059,-500.0,0.00016849,2]
[350398437,1737828640069,-500.0,0.00016849,2]
[350398439,1737828640079,-925.05,0.00016849,2]
[350398441,1737828640089,-969.24,0.00016849,2]
[350398443,1737828640098,-1232.33,0.00016849,2]
[350398445,1737828640108,-500.0,0.00016849,2]
[350398447,1737828640119,-500.0,0.00016849,2]
[350398449,1737828640128,-1179.31,0.00016849,2]
[350398451,1737828640138,-500.0,0.00016849,2]
[350398453,1737828640148,-500.0,0.00016849,2]
[350398455,1737828640158,-1983.3,0.00016849,2]
[350398457,1737828640168,-539.77,0.00016849,2]
[350398459,1737828640177,-500.0,0.00016849,2]
[350398461,1737828640187,-17651.35,0.00016849,2]
[350398463,1737828640196,-500.0,0.00016849,2]
[350398464,1737828640206,-500.0,0.00016849,2]
[350398465,1737828640215,-791.32,0.00016849,2]
[350398466,1737828640225,-203.596258,0.00016849,2]
[350398467,1737828640235,-500.0,0.00016849,2]
[350398468,1737828640245,-511.61,0.00016849,2]
[350398470,1737828640255,-5120.26,0.00016849,2]
[350398472,1737828640264,-959.31,0.00016849,2]
[350398474,1737828640273,-203.596258,0.00016849,2]
[350398476,1737828640283,-1193.91,0.00016849,2]
[350398478,1737828640293,-481.18392131,0.00016849,2]
[350398480,1737828640302,-573.77,0.00016849,2]
[350398482,1737828640312,-500.0,0.00016849,2]
[350398484,1737828640322,-672.02,0.00016849,2]
[350398486,1737828640332,-500.0,0.00016849,2]
[350398489,1737828640342,-500.0,0.00016849,2]
[350398490,1737828640355,-618.4,0.00016849,2]
[350398492,1737828640364,-600.0,0.0001687,2]
[350398495,1737828640374,-500.0,0.00016986,2]
[350398496,1737828640383,-500.0,0.00016986,2]
[350398499,1737828640395,-351.05297722,0.00016986,2]
[350398500,1737828640404,-500.0,0.00016986,2]
[350398503,1737828640414,-500.0,0.00016986,2]
[350398505,1737828640423,-500.0,0.00016986,2]
[350398507,1737828640433,-500.0,0.00016986,2]
[350398509,1737828640443,-500.0,0.00016986,2]
[350398511,1737828640452,-731.84,0.00016986,2]
[350398513,1737828640462,-794.69,0.00016986,2]
[350398515,1737828640471,-500.0,0.00016986,2]
[350398517,1737828640480,-500.0,0.00016986,2]
[350398519,1737828640490,-500.0,0.00016986,2]
[350398521,1737828640499,-679.22,0.00016986,2]
[350398523,1737828640509,-173.46726981,0.00016986,2]
[350398525,1737828640519,-500.0,0.00016986,2]
[350398527,1737828640529,-500.0,0.00016986,2]
[350398529,1737828640538,-500.0,0.00016986,2]
[350398531,1737828640548,-500.0,0.00016986,2]
[350398533,1737828640557,-500.0,0.00016986,2]
[350398535,1737828640567,-588.02680201,0.00016986,2]
[350398537,1737828640577,-246.44848378,0.00016986,2]
[350398539,1737828640586,-500.0,0.00016986,2]
[350398541,1737828640595,-500.0,0.00016986,2]
[350398543,1737828640605,-500.0,0.00016986,2]
[350398545,1737828640614,-500.0,0.00016986,2]
[350398547,1737828640624,-151.0,0.00016986,2]
[350398549,1737828640635,-500.0,0.00016986,2]
[350398551,1737828640645,-1252.26,0.00016986,2]
[350398553,1737828640656,-1559.62,0.00016986,2]
[350398555,1737828640666,-500.0,0.00016986,2]
[350398557,1737828640676,-659.88,0.00016986,2]
[350398559,1737828640685,-151.0,0.00016986,2]
[350398561,1737828640695,-265.964732,0.00016986,2]
[350398563,1737828640704,-5996.5,0.00016986,2]
[350398565,1737828640714,-718.79,0.00016986,2]
[350398566,1737828640723,-570.26,0.00016986,2]
[350398568,1737828640733,-500.0,0.00016986,2]
[350398570,1737828640743,-2952.26,0.00016986,2]
[350398573,1737828640753,-500.0,0.00016986,2]
[350398575,1737828640762,-575.92,0.00016986,2]
[350398577,1737828640772,-2591.56,0.00016986,2]
[350398579,1737828640781,-964.32,0.00016986,2]
[350398581,1737828640791,-500.0,0.00016986,2]
[350398583,1737828640801,-531.52,0.00016986,2]
[350398585,1737828640811,-500.0,0.00016986,2]
[350398587,1737828640820,-1382.81,0.00016986,2]
[350398589,1737828640830,-500.0,0.00016986,2]
[350398591,1737828640840,-500.0,0.00016986,2]
[350398593,1737828640850,-925.05,0.00016986,2]
[350398595,1737828640860,-969.24,0.00016986,2]
[350398597,1737828640870,-1232.33,0.00016986,2]
[350398599,1737828640880,-500.0,0.00016986,2]
[350398601,1737828640889,-500.0,0.00016986,2]
[350398603,1737828640899,-1179.31,0.00016986,2]
[350398605,1737828640909,-500.0,0.00016986,2]
[350398607,1737828640918,-500.0,0.00016986,2]
[350398609,1737828640928,-1983.3,0.00016986,2]
[350398611,1737828640937,-539.77,0.00016986,2]
[350398613,1737828640947,-500.0,0.00016986,2]
[350398615,1737828640956,-17651.35,0.00016986,2]
[350398617,1737828640968,-500.0,0.00016986,2]
[350398619,1737828640979,-500.0,0.00016986,2]
[350398621,1737828640989,-791.32,0.00016986,2]
[350398623,1737828640999,-203.596258,0.00016986,2]
[350398625,1737828641008,-309.30355339,0.00016986,2]
[350398627,1737828641018,-203.596258,0.00016986,2]
[350398629,1737828641028,-511.61,0.00016986,2]
[350398631,1737828641038,-5120.26,0.00016986,2]
[350398632,1737828641047,-959.31,0.00016986,2]
[350398634,1737828641057,-203.596258,0.00016986,2]
[350398636,1737828641066,-203.596258,0.00016986,2]
[350398638,1737828641075,-1193.91,0.00016986,2]
[350398640,1737828641085,-573.77,0.00016986,2]
[350398642,1737828641095,-500.0,0.00016986,2]
[350398644,1737828641104,-672.02,0.00016986,2]
[350398646,1737828641114,-500.0,0.00016986,2]
[350398648,1737828641123,-618.4,0.00016986,2]
[350398650,1737828641132,-151.0,0.00016989,2]
[350398652,1737828641143,-1000.0,0.00017021,2]
[350398654,1737828641153,-1000.0,0.00017021,2]
[350398656,1737828641163,-600.0,0.00017046,2]
[350398658,1737828641172,-9848.98572629,0.00017088,2]
[350398660,1737828641182,-500.0,0.00017123,2]
[350398662,1737828641191,-500.0,0.00017123,2]
[350398664,1737828641201,-500.0,0.00017123,2]
[350398666,1737828641210,-500.0,0.00017123,2]
[350398667,1737828641219,-500.0,0.00017123,2]
[350398668,1737828641229,-500.0,0.00017123,2]
[350398669,1737828641238,-500.0,0.00017123,2]
[350398670,1737828641248,-731.84,0.00017123,2]
[350398671,1737828641258,-794.69,0.00017123,2]
[350398672,1737828641268,-500.0,0.00017123,2]
[350398673,1737828641277,-500.0,0.00017123,2]
[350398674,1737828641287,-500.0,0.00017123,2]
[350398675,1737828641297,-679.22,0.00017123,2]
[350398676,1737828641306,-500.0,0.00017123,2]
[350398677,1737828641316,-500.0,0.00017123,2]
[350398678,1737828641326,-500.0,0.00017123,2]
[350398679,1737828641336,-500.0,0.00017123,2]
[350398680,1737828641348,-500.0,0.00017123,2]
[350398681,1737828641359,-500.0,0.00017123,2]
[350398682,1737828641369,-500.0,0.00017123,2]
[350398683,1737828641379,-500.0,0.00017123,2]
[350398684,1737828641389,-500.0,0.00017123,2]
[350398685,1737828641399,-151.0,0.00017123,2]
[350398686,1737828641409,-290.57425814,0.00017123,2]
[350398687,1737828641419,-1252.26,0.00017123,2]
[350398688,1737828641430,-1559.62,0.00017123,2]
[350398689,1737828641441,-500.0,0.00017123,2]
[350398690,1737828641451,-659.88,0.00017123,2]
[350398692,1737828641461,-5996.5,0.00017123,2]
[350398694,1737828641471,-718.79,0.00017123,2]
[350398695,1737828641481,-570.26,0.00017123,2]
[350398697,1737828641490,-500.0,0.00017123,2]
[350398699,1737828641500,-2952.26,0.00017123,2]
[350398701,1737828641510,-500.0,0.00017123,2]
[350398703,1737828641520,-575.92,0.00017123,2]
[350398705,1737828641530,-2591.56,0.00017123,2]
[350398706,1737828641540,-964.32,0.00017123,2]
[350398707,1737828641549,-500.0,0.00017123,2]
[350398708,1737828641559,-531.52,0.00017123,2]
[350398709,1737828641569,-500.0,0.00017123,2]
[350398710,1737828641579,-1382.81,0.00017123,2]
[350398711,1737828641589,-500.0,0.00017123,2]
[350398712,1737828641599,-500.0,0.00017123,2]
[350398713,1737828641609,-925.05,0.00017123,2]
[350398714,1737828641618,-969.24,0.00017123,2]
[350398715,1737828641628,-1232.33,0.00017123,2]
[350398716,1737828641639,-500.0,0.00017123,2]
[350398717,1737828641648,-611.01189543,0.00017123,2]
[350398718,1737828641658,-1179.31,0.00017123,2]
[350398719,1737828641668,-500.0,0.00017123,2]
[350398720,1737828641678,-500.0,0.00017123,2]
[350398721,1737828641688,-1983.3,0.00017123,2]
[350398722,1737828641698,-539.77,0.00017123,2]
[350398723,1737828641708,-500.0,0.00017123,2]
[350398724,1737828641718,-17651.35,0.00017123,2]
[350398725,1737828641728,-500.0,0.00017123,2]
[350398726,1737828641739,-500.0,0.00017123,2]
[350398727,1737828641749,-791.32,0.00017123,2]
[350398728,1737828641759,-203.596258,0.00017123,2]
[350398729,1737828641769,-203.10708598,0.00017123,2]
[350398730,1737828641783,-308.50291402,0.00017123,2]
[350398731,1737828641793,-5120.26,0.00017123,2]
[350398732,1737828641804,-959.31,0.00017123,2]
[350398733,1737828641814,-203.596258,0.00017123,2]
[350398734,1737828641824,-1193.91,0.00017123,2]
[350398735,1737828641835,-573.77,0.00017123,2]
[350398736,1737828641845,-500.0,0.00017123,2]
[350398737,1737828641855,-672.02,0.00017123,2]
[350398738,1737828641865,-500.0,0.00017123,2]
[350398739,1737828641876,-618.4,0.00017123,2]
[350398740,1737828642001,-319.437245,0.00017123,2]
[350398741,1737828642016,-500.0,0.00017124,2]
[350398742,1737828642028,-1530.326,0.00017168,2]
[350398743,1737828642038,-2304.0,0.00017168,2]
[350398744,1737828642047,-500.0,0.0001718,2]
[350398745,1737828642056,-500.0,0.00017204,2]
[350398746,1737828642067,-600.0,0.00017222,2]
[350398747,1737828642078,-500.0,0.0001726,2]
[350398748,1737828642088,-500.0,0.0001726,2]
[350398749,1737828642098,-500.0,0.0001726,2]
[350398750,1737828642108,-500.0,0.0001726,2]
[350398751,1737828642118,-500.0,0.0001726,2]
[350398752,1737828642127,-500.0,0.0001726,2]
[350398753,1737828642139,-500.0,0.0001726,2]
[350398754,1737828642149,-731.84,0.0001726,2]
[350398755,1737828642159,-794.69,0.0001726,2]
[350398756,1737828642168,-500.0,0.0001726,2]
[350398757,1737828642178,-500.0,0.0001726,2]
[350398758,1737828642187,-500.0,0.0001726,2]
[350398759,1737828642197,-679.22,0.0001726,2]
[350398760,1737828642207,-500.0,0.0001726,2]
[350398761,1737828642217,-500.0,0.0001726,2]
[350398762,1737828642227,-500.0,0.0001726,2]
[350398763,1737828642236,-500.0,0.0001726,2]
[350398764,1737828642246,-500.0,0.0001726,2]
[350398765,1737828642255,-500.0,0.0001726,2]
[350398766,1737828642264,-500.0,0.0001726,2]
[350398767,1737828642274,-500.0,0.0001726,2]
[350398768,1737828642283,-500.0,0.0001726,2]
[350398769,1737828642292,-151.0,0.0001726,2]
[350398770,1737828642302,-1252.26,0.0001726,2]
[350398771,1737828642311,-1559.62,0.0001726,2]
[350398772,1737828642321,-500.0,0.0001726,2]
[350398773,1737828642330,-659.88,0.0001726,2]
[350398774,1737828642340,-5996.5,0.0001726,2]
[350398775,1737828642353,-718.79,0.0001726,2]
[350398776,1737828642362,-570.26,0.0001726,2]
[350398777,1737828642371,-500.0,0.0001726,2]
[350398778,1737828642381,-2952.26,0.0001726,2]
[350398779,1737828642392,-181.88061924,0.0001726,2]
[350398780,1737828642403,-575.92,0.0001726,2]
[350398781,1737828642413,-2591.56,0.0001726,2]
[350398782,1737828642424,-964.32,0.0001726,2]
[350398783,1737828642434,-500.0,0.0001726,2]
[350398784,1737828642444,-531.52,0.0001726,2]
[350398785,1737828642453,-500.0,0.0001726,2]
[350398787,1737828642463,-1382.81,0.0001726,2]
[350398788,1737828642473,-500.0,0.0001726,2]
[350398789,1737828642482,-500.0,0.0001726,2]
[350398790,1737828642492,-925.05,0.0001726,2]
[350398791,1737828642501,-969.24,0.0001726,2]
[350398793,1737828642511,-1232.33,0.0001726,2]
[350398794,1737828642520,-500.0,0.0001726,2]
[350398795,1737828642530,-1179.31,0.0001726,2]
[350398796,1737828642539,-500.0,0.0001726,2]
[350398797,1737828642548,-500.0,0.0001726,2]
[350398798,1737828642557,-1983.3,0.0001726,2]
[350398800,1737828642566,-539.77,0.0001726,2]
[350398801,1737828642576,-227.93714026,0.0001726,2]
[350398803,1737828642585,-17651.35,0.0001726,2]
[350398804,1737828642594,-178.58,0.0001726,2]
[350398806,1737828642605,-500.0,0.0001726,2]
[350398807,1737828642614,-791.32,0.0001726,2]
[350398808,1737828642624,-203.596258,0.0001726,2]
[350398809,1737828642635,-511.61,0.0001726,2]
[350398810,1737828642645,-203.596258,0.0001726,2]
[350398811,1737828642655,-5120.26,0.0001726,2]
[350398812,1737828642664,-959.31,0.0001726,2]
[350398813,1737828642674,-203.596258,0.0001726,2]
[350398814,1737828642683,-203.59626684,0.0001726,2]
[350398815,1737828642693,-1193.91,0.0001726,2]
[350398816,1737828642703,-573.77,0.0001726,2]
[350398818,1737828642713,-500.0,0.0001726,2]
[350398820,1737828642722,-672.02,0.0001726,2]
[350398822,1737828642731,-408.597072,0.0001726,2]
[350398824,1737828642740,-618.4,0.0001726,2]
[350398826,1737828642749,-1716.59013796,0.00017301,2]
[350398828,1737828642758,-153.0,0.00017335,2]
[350398830,1737828642767,-153.0,0.00017335,2]
[350398832,1737828642776,-153.0,0.00017335,2]
[350398834,1737828642785,-153.0,0.00017335,2]
[350398836,1737828642794,-153.0,0.00017335,2]
[350398838,1737828642804,-153.0,0.00017335,2]
[350398840,1737828642813,-153.0,0.00017335,2]
[350398842,1737828642822,-153.0,0.00017335,2]
[350398844,1737828642832,-153.0,0.00017335,2]
[350398846,1737828642841,-153.0,0.00017335,2]
[350398848,1737828642851,-153.0,0.00017335,2]
[350398850,1737828642860,-153.0,0.00017335,2]
[350398852,1737828642869,-153.0,0.00017335,2]
[350398854,1737828642879,-153.0,0.00017335,2]
[350398856,1737828642889,-153.0,0.00017335,2]
[350398858,1737828642899,-153.0,0.00017335,2]
[350398860,1737828642909,-153.0,0.00017335,2]
[350398862,1737828642918,-153.0,0.00017335,2]
[350398864,1737828642928,-153.0,0.00017335,2]
[350398866,1737828642937,-153.0,0.00017335,2]
[350398868,1737828642947,-69.2036287,0.00017335,2]
[350398881,1737828643055,-83.7963713,0.00017335,2]
[350398883,1737828643065,-153.0,0.00017335,2]
[350398885,1737828643075,-153.0,0.00017335,2]
[350398887,1737828643085,-153.0,0.00017335,2]
[350398889,1737828643095,-153.0,0.00017335,2]
[350398891,1737828643105,-153.0,0.00017335,2]
[350398893,1737828643114,-153.0,0.00017335,2]
[350398895,1737828643124,-153.0,0.00017335,2]
[350398897,1737828643136,-153.0,0.00017335,2]
[350398899,1737828643146,-153.0,0.00017335,2]
[350398901,1737828643155,-153.0,0.00017335,2]
[350398903,1737828643165,-153.0,0.00017335,2]
[350398905,1737828643174,-153.0,0.00017335,2]
[350398907,1737828643184,-153.0,0.00017335,2]
[350398909,1737828643193,-153.0,0.00017335,2]
[350398911,1737828643202,-153.0,0.00017335,2]
[350398913,1737828643211,-153.0,0.00017335,2]
[350398915,1737828643220,-153.0,0.00017335,2]
[350398917,1737828643229,-153.0,0.00017335,2]
[350398919,1737828643238,-153.0,0.00017335,2]
[350398921,1737828643248,-153.0,0.00017335,2]
[350398923,1737828643257,-153.0,0.00017335,2]
[350398925,1737828643267,-153.0,0.00017335,2]
[350398927,1737828643276,-153.0,0.00017335,2]
[350398929,1737828643286,-153.0,0.00017335,2]
[350398931,1737828643296,-153.0,0.00017335,2]
[350398933,1737828643305,-153.0,0.00017335,2]
[350398935,1737828643315,-153.0,0.00017335,2]
[350398936,1737828643324,-153.0,0.00017335,2]
[350398939,1737828643334,-153.0,0.00017335,2]
[350398940,1737828643343,-153.0,0.00017335,2]
[350398942,1737828643357,-153.0,0.00017335,2]
[350398945,1737828643367,-153.0,0.00017335,2]
[350398946,1737828643376,-153.0,0.00017335,2]
[350398948,1737828643389,-153.0,0.00017335,2]
[350398951,1737828643399,-153.0,0.00017335,2]
[350398952,1737828643408,-153.0,0.00017335,2]
[350398954,1737828643417,-153.0,0.00017335,2]
[350398956,1737828643427,-153.0,0.00017335,2]
[350398959,1737828643438,-153.0,0.00017335,2]
[350398960,1737828643461,-153.0,0.00017335,2]
[350398962,1737828643485,-153.0,0.00017335,2]
[350398964,1737828643511,-153.0,0.00017335,2]
[350398966,1737828643534,-153.0,0.00017335,2]
[350398968,1737828643557,-153.0,0.00017335,2]
[350398970,1737828643580,-153.0,0.00017335,2]
[350398972,1737828643608,-153.0,0.00017335,2]
[350398974,1737828643641,-153.0,0.00017335,2]
[350398976,1737828643682,-153.0,0.00017335,2]
[350398978,1737828643715,-500.0,0.00017397,2]
[350398980,1737828643724,-500.0,0.00017397,2]
[350398982,1737828643733,-500.0,0.00017397,2]
[350398984,1737828643743,-500.0,0.00017397,2]
[350398986,1737828643752,-500.0,0.00017397,2]
[350398988,1737828643762,-500.0,0.00017397,2]
[350398991,1737828643771,-500.0,0.00017397,2]
[350398993,1737828643780,-731.84,0.00017397,2]
[350398995,1737828643789,-794.69,0.00017397,2]
[350398996,1737828643798,-500.0,0.00017397,2]
[350398999,1737828643808,-500.0,0.00017397,2]
[350399000,1737828643818,-500.0,0.00017397,2]
[350399002,1737828643828,-679.22,0.00017397,2]
[350399003,1737828643837,-500.0,0.00017397,2]
[350399004,1737828643847,-604.26581967,0.00017397,2]
[350399005,1737828643856,-230.48438611,0.00017397,2]
[350399006,1737828643866,-500.0,0.00017397,2]
[350399007,1737828643876,-500.0,0.00017397,2]
[350399008,1737828643887,-500.0,0.00017397,2]
[350399009,1737828643896,-500.0,0.00017397,2]
[350399010,1737828643906,-500.0,0.00017397,2]
[350399011,1737828643915,-500.0,0.00017397,2]
[350399012,1737828643924,-1252.26,0.00017397,2]
[350399013,1737828643933,-1559.62,0.00017397,2]
[350399014,1737828643943,-500.0,0.00017397,2]
[350399015,1737828643952,-659.88,0.00017397,2]
[350399017,1737828643961,-5996.5,0.00017397,2]
[350399019,1737828643971,-718.79,0.00017397,2]
[350399021,1737828643980,-570.26,0.00017397,2]
[350399023,1737828643989,-319.6570126,0.00017397,2]
[350399025,1737828643998,-2952.26,0.00017397,2]
[350399027,1737828644007,-575.92,0.00017397,2]
[350399029,1737828644017,-2591.56,0.00017397,2]
[350399031,1737828644027,-964.32,0.00017397,2]
[350399033,1737828644036,-500.0,0.00017397,2]
[350399035,1737828644045,-531.52,0.00017397,2]
[350399037,1737828644055,-500.0,0.00017397,2]
[350399039,1737828644064,-1382.81,0.00017397,2]
[350399041,1737828644072,-500.0,0.00017397,2]
[350399043,1737828644082,-500.0,0.00017397,2]
[350399045,1737828644091,-925.05,0.00017397,2]
[350399047,1737828644100,-969.24,0.00017397,2]
[350399049,1737828644109,-1232.33,0.00017397,2]
[350399051,1737828644118,-500.0,0.00017397,2]
[350399053,1737828644127,-1179.31,0.00017397,2]
[350399056,1737828644137,-500.0,0.00017397,2]
[350399057,1737828644146,-500.0,0.00017397,2]
[350399059,1737828644155,-1983.3,0.00017397,2]
[350399061,1737828644164,-539.77,0.00017397,2]
[350399064,1737828644174,-17651.35,0.00017397,2]
[350399066,1737828644183,-500.0,0.00017397,2]
[350399068,1737828644192,-791.32,0.00017397,2]
[350399070,1737828644202,-5120.26,0.00017397,2]
[350399072,1737828644211,-511.61,0.00017397,2]
[350399074,1737828644220,-959.31,0.00017397,2]
[350399075,1737828644229,-1193.91,0.00017397,2]
[350399077,1737828644239,-573.77,0.00017397,2]
[350399079,1737828644247,-500.0,0.00017397,2]
[350399082,1737828644259,-672.02,0.00017397,2]
[350399084,1737828644268,-618.4,0.00017397,2]
[350399086,1737828644277,-843.47773102,0.00017397,2]
[350399088,1737828644287,-978.029,0.00017494,2]
[350399090,1737828644296,-5000.0,0.000175,2]
[350399093,1737828644305,-151.0,0.000175,2]
[350399095,1737828644314,-253455.2793963,0.000175,2]
[350399097,1737828644323,-5630.0,0.000175,2]
[350399099,1737828644333,-238.08883602,0.00017534,2]
[350399101,1737828644343,-500.0,0.00017534,2]
[350399104,1737828644356,-500.0,0.00017534,2]
[350399106,1737828644365,-500.0,0.00017534,2]
[350399109,1737828644374,-176.70850737,0.00017534,2]
[350399112,1737828644383,-500.0,0.00017534,2]
[350399116,1737828644395,-334.52662965,0.00017534,2]
[350399119,1737828644404,-500.0,0.00017534,2]
[350399121,1737828644413,-731.84,0.00017534,2]
[350399124,1737828644423,-794.69,0.00017534,2]
[350399127,1737828644435,-500.0,0.00017534,2]
[350399129,1737828644444,-500.0,0.00017534,2]
[350399131,1737828644453,-500.0,0.00017534,2]
[350399133,1737828644462,-679.22,0.00017534,2]
[350399135,1737828644471,-500.0,0.00017534,2]
[350399137,1737828644481,-500.0,0.00017534,2]
[350399139,1737828644490,-309.10440541,0.00017534,2]
[350399141,1737828644499,-500.0,0.00017534,2]
[350399143,1737828644508,-500.0,0.00017534,2]
[350399145,1737828644517,-500.0,0.00017534,2]
[350399147,1737828644527,-500.0,0.00017534,2]
[350399149,1737828644537,-1252.26,0.00017534,2]
[350399151,1737828644546,-1559.62,0.00017534,2]
[350399153,1737828644555,-500.0,0.00017534,2]
[350399155,1737828644564,-659.88,0.00017534,2]
[350399157,1737828644573,-5996.5,0.00017534,2]
[350399159,1737828644583,-718.79,0.00017534,2]
[350399161,1737828644592,-570.26,0.00017534,2]
[350399163,1737828644601,-2952.26,0.00017534,2]
[350399165,1737828644610,-575.92,0.00017534,2]
[350399167,1737828644619,-2591.56,0.00017534,2]
[350399169,1737828644628,-964.32,0.00017534,2]
[350399171,1737828644638,-500.0,0.00017534,2]
[350399173,1737828644647,-531.52,0.00017534,2]
[350399175,1737828644657,-500.0,0.00017534,2]
[350399177,1737828644666,-1382.81,0.00017534,2]
[350399179,1737828644675,-500.0,0.00017534,2]
[350399181,1737828644684,-500.0,0.00017534,2]
[350399183,1737828644693,-925.05,0.00017534,2]
[350399185,1737828644702,-969.24,0.00017534,2]
[350399187,1737828644711,-1232.33,0.00017534,2]
[350399189,1737828644720,-500.0,0.00017534,2]
[350399191,1737828644729,-500.0,0.00017534,2]
[350399193,1737828644738,-500.0,0.00017534,2]
[350399195,1737828644747,-500.0,0.00017534,2]
[350399197,1737828644757,-1179.31,0.00017534,2]
[350399199,1737828644766,-500.0,0.00017534,2]
[350399201,1737828644775,-500.0,0.00017534,2]
[350399203,1737828644784,-1983.3,0.00017534,2]
[350399205,1737828644794,-539.77,0.00017534,2]
[350399207,1737828644803,-17651.35,0.00017534,2]
[350399209,1737828644812,-500.0,0.00017534,2]
[350399211,1737828644821,-791.32,0.00017534,2]
[350399213,1737828644830,-5120.26,0.00017534,2]
[350399215,1737828644840,-511.61,0.00017534,2]
[350399217,1737828644850,-959.31,0.00017534,2]
[350399219,1737828644859,-1193.91,0.00017534,2]
[350399221,1737828644868,-573.77,0.00017534,2]
[350399223,1737828644877,-500.0,0.00017534,2]
[350399225,1737828644888,-672.02,0.00017534,2]
[350399227,1737828644897,-618.4,0.00017534,2]
[350399229,1737828644908,-151.56278326,0.00017554,2]
[350399231,1737828644917,-151.0,0.000176,2]
[350399233,1737828644926,-5446.17343975,0.00017671,5]
[350399237,1737828644951,-2416.3361619,0.00017671,5]